fUSD/lending_fUSD_20250611
["ID","MTS","AMOUNT","RATE_DAILY","PERIOD"]
[365451444,1749678675929,-500.0,0.00019973,2]
[365451445,1749678675938,-500.0,0.00019973,2]
[365451446,1749678675947,-579.82518665,0.00019973,2]
[365451447,1749678675957,-300.89,0.00019988,2]
[365451448,1749678675966,-151.0,0.00019989,2]
[365451449,1749678675976,-151.154166,0.00019989,2]
[365451450,1749678675985,-150.0,0.00019996,2]
[365451451,1749678675997,-500.0,0.00019999,2]
[365451452,1749678676006,-500.0,0.00019999,2]
[365451453,1749678676016,-512.0,0.00019999,2]
[365451454,1749678676025,-150.0,0.00019999,2]
[365451455,1749678676035,-150.0,0.00019999,2]
[365451456,1749678676050,-599084.95146898,0.0002,3]
[365451457,1749678676060,-347.59350537,0.0002,3]
[365451458,1749678676069,-1965048.84391574,0.0002,2]
[365451459,1749678676654,622.96,0.00017891,2]
[365451460,1749678676883,-205.0,0.00018231,2]
[365451461,1749678676892,-59.13311619,0.00019178,2]
[365451462,1749678676907,-430.86688381,0.00019178,2]
[365451463,1749678676917,-490.0,0.00019178,2]
[365451464,1749678676926,-490.0,0.00019178,2]
[365451465,1749678676935,-490.0,0.00019178,2]
[365451466,1749678676944,-490.0,0.00019342,2]
[365451467,1749678676953,-164.92,0.00019342,2]
[365451468,1749678676963,-490.0,0.00019506,2]
[365451469,1749678676972,-1411.22,0.00019671,2]
[365451470,1749678676982,-490.0,0.00019671,2]
[365451471,1749678676991,-490.0,0.00019671,2]
[365451472,1749678677002,-1411.22,0.00019835,2]
[365451473,1749678677011,-490.0,0.00019835,2]
[365451474,1749678677021,-450.0,0.00019835,2]
[365451475,1749678677030,-310.9765213,0.000199,2]
[365451476,1749678677039,-13638.17259489,0.0002,2]
[365451477,1749678677379,-480.0,0.00019178,2]
[365451478,1749678677388,-490.0,0.00019178,2]
[365451479,1749678677397,-61.4064692,0.00019178,2]
[365451480,1749678677454,-362.72947426,0.00019178,2]
[365451481,1749678677463,-428.45131408,0.00019178,2]
[365451482,1749678677477,-61.54868592,0.00019178,2]
[365451483,1749678677486,-598.78,0.00019178,2]
[365451484,1749678677496,-490.0,0.00019342,2]
[365451485,1749678677505,-490.0,0.00019342,2]
[365451486,1749678677517,-2054.91976624,0.00019443,2]
[365451487,1749678677526,-490.0,0.00019506,2]
[365451488,1749678677535,-490.0,0.00019506,2]
[365451489,1749678677544,-528.96834258,0.00019609,2]
[365451490,1749678677554,-232.28320526,0.00019671,2]
[365451491,1749678679702,273.0,0.000171,5]
[365451492,1749678679735,500.0,0.00017999,2]
[365451493,1749678679767,643.09078925,0.00017999,2]
[365451494,1749678679950,500.0,0.00017999,2]
[365451495,1749678679981,496.82547364,0.00017999,2]
[365451496,1749678680009,500.0,0.00017999,2]
[365451497,1749678682400,200.53982071,0.00017999,2]
[365451498,1749678683041,166.31394151,0.00017999,2]
[365451499,1749678691295,1205.220038,0.00018,2]
[365451502,1749678796248,500.0,0.00016384,2]
[365451503,1749678809347,500.0,0.00016384,2]
[365451504,1749678824040,1350.31,0.0001795,2]
[365451505,1749678856891,67.93637487,0.00017879,2]
[365451506,1749678856915,23832.06362513,0.00017879,2]
[365451507,1749678932831,371.52,0.00013699,2]
[365451509,1749679014711,61487.0,0.00024,120]
[365451510,1749679055090,-198.07675857,0.00018041,2]
[365451511,1749679081128,-301.92324143,0.00018041,2]
[365451512,1749679139391,500.0,0.00017934,2]
[365451513,1749679172992,1431.36,0.00017934,2]
[365451514,1749679183503,150.0,0.00017934,7]
[365451515,1749679230969,895.7689463,0.00017911,2]
[365451516,1749679230995,104.2310537,0.00017911,2]
[365451517,1749679250335,200.0,0.00017911,2]
[365451518,1749679293527,748.2,0.00017933,2]
[365451519,1749679305418,194.69,0.00016712,2]
[365451520,1749679345449,1298.24,0.00015985,2]
[365451524,1749679449352,6523.96,0.00017854,2]
[365451525,1749679454999,200.0,0.00017848,2]
[365451526,1749679564580,544.7,0.00017878,2]
[365451527,1749679644279,-168.57881699,0.00018041,2]
[365451528,1749679644299,-661.34,0.00018041,2]
[365451529,1749679644320,-250.0,0.00018073,2]
[365451530,1749679644342,-241.69967668,0.00018105,2]
[365451531,1749679653084,-8.30032332,0.00018105,2]
[365451532,1749679653105,-1298.24,0.00018249,2]
[365451533,1749679653126,-16.8860228,0.00018356,2]
[365451534,1749679681744,1940.1,0.00017945,2]
[365451535,1749679701038,204.0,0.00017762,2]
[365451536,1749679739309,666.0,0.00017949,2]
[365451539,1749679811479,244.86,0.00017927,2]
[365451543,1749679832020,-1200.0,0.00018354,2]
[365451544,1749679832030,-413.0,0.00018355,2]
[365451545,1749679832040,-300.0,0.00018355,2]
[365451546,1749679832051,-497.85,0.00018355,2]
[365451547,1749679832061,-500.13,0.00018355,2]
[365451548,1749679832073,-504.51,0.00018355,2]
[365451549,1749679832087,-300.11,0.00018355,2]
[365451550,1749679832096,-500.14,0.00018355,2]
[365451551,1749679832106,-305.74,0.00018355,2]
[365451552,1749679832116,-301.49,0.00018355,2]
[365451553,1749679832129,-304.2,0.00018355,2]
[365451554,1749679832139,-3817.2839772,0.00018356,2]
[365451555,1749679832149,-494.79,0.00018356,2]
[365451556,1749679832167,-304.41,0.00018356,2]
[365451557,1749679832177,-500.65,0.00018356,2]
[365451558,1749679832187,-507.47,0.00018356,2]
[365451559,1749679832196,-498.92,0.00018356,2]
[365451560,1749679832211,-304.94,0.00018356,2]
[365451561,1749679832221,-502.56,0.00018356,2]
[365451562,1749679832230,-507.04,0.00018356,2]
[365451563,1749679832240,-503.16,0.00018356,2]
[365451564,1749679832250,-300.3,0.00018356,2]
[365451565,1749679832260,-506.29,0.00018356,2]
[365451566,1749679832270,-505.59,0.00018356,2]
[365451567,1749679832280,-509.28,0.00018356,2]
[365451568,1749679832289,-302.74,0.00018356,2]
[365451569,1749679832300,-508.31,0.00018356,2]
[365451570,1749679832310,-300.38,0.00018356,2]
[365451571,1749679832319,-300.0,0.00018385,2]
[365451572,1749679832329,-509.96,0.00018386,2]
[365451573,1749679832339,-500.72,0.00018386,2]
[365451574,1749679832349,-301.2,0.00018386,2]
[365451575,1749679832359,-168.57881699,0.00018386,2]
[365451576,1749679832368,-167.98,0.00018391,2]
[365451577,1749679832378,-155.22,0.00018507,2]
[365451578,1749679832388,-495.15,0.00018509,2]
[365451579,1749679832398,-304.51,0.00018509,2]
[365451580,1749679832412,-492.76,0.00018509,2]
[365451581,1749679832421,-505.31,0.00018657,2]
[365451582,1749679832431,-502.95,0.00018657,2]
[365451583,1749679832440,-152.0,0.00018715,3]
[365451584,1749679832449,-305.87,0.00018718,2]
[365451585,1749679832459,-492.97,0.00018718,2]
[365451586,1749679832469,-501.37,0.00018718,2]
[365451587,1749679832479,-301.31,0.00018718,2]
[365451588,1749679832489,-1200.0,0.00018718,2]
[365451589,1749679832498,-1957.856,0.0001875,2]
[365451590,1749679832507,-207.4,0.0001875,2]
[365451591,1749679832517,-1948.0,0.00018771,2]
[365451592,1749679832526,-2030.296672,0.00018805,2]
[365451593,1749679832535,-752.4202,0.00018822,2]
[365451594,1749679832545,-2105.41764886,0.0001886,2]
[365451596,1749679832554,-968.0,0.00018865,2]
[365451597,1749679832564,-1160.01,0.00018878,2]
[365451599,1749679832573,-2083.4864,0.00018881,2]
[365451601,1749679832583,-796.98,0.000189,2]
[365451603,1749679832592,-796.98,0.000189,2]
[365451605,1749679832601,-561.14303567,0.000189,2]
[365451607,1749679832611,-1631.0,0.00018906,2]
[365451609,1749679832620,-244.0,0.0001891,2]
[365451611,1749679832630,-2183.31810187,0.00018915,2]
[365451613,1749679832639,-561.14303538,0.00018934,2]
[365451614,1749679832648,-561.14303538,0.00018969,2]
[365451615,1749679832661,-164.6778826,0.0001897,2]
[365451616,1749679832671,-529.30038636,0.0001897,2]
[365451617,1749679832680,-551.40300103,0.0001897,2]
[365451618,1749679832690,-151.0,0.0001897,2]
[365451619,1749679832700,-2264.10087164,0.0001897,2]
[365451620,1749679832709,-658.3371212,0.00018978,2]
[365451622,1749679832719,-500.0,0.00018978,2]
[365451624,1749679832728,-13052.3081,0.00018978,2]
[365451625,1749679832738,-1000.0,0.00018978,2]
[365451626,1749679832747,-271.9607,0.00018978,2]
[365451627,1749679832756,-3958.6286,0.00018978,2]
[365451628,1749679832766,-1000.0,0.00018978,2]
[365451629,1749679832776,-2500.0,0.00018978,2]
[365451630,1749679832785,-33016.12477239,0.00018981,2]
[365451631,1749679832795,-200.84703793,0.00018996,2]
[365451632,1749679832804,-1000.0,0.00019,2]
[365451633,1749679832814,-250.0,0.00019,2]
[365451634,1749679832823,-561.14303538,0.00019003,2]
[365451635,1749679832833,-204.0,0.00019004,3]
[365451636,1749679832842,-151.48627974,0.00019014,2]
[365451637,1749679832852,-2347.87260389,0.00019025,2]
[365451638,1749679832864,-561.14303538,0.00019038,2]
[365451639,1749679832879,-807.66,0.00019041,2]
[365451640,1749679832893,-922.24,0.00019041,2]
[365451641,1749679832906,-579.98,0.00019042,2]
[365451642,1749679832918,-561.14303538,0.00019072,2]
[365451643,1749679832931,-302.82,0.00019076,2]
[365451644,1749679832944,-569.96876847,0.00019077,2]
[365451645,1749679832958,-301.78260343,0.00019077,2]
[365451646,1749679832972,-163.07871679,0.00019078,2]
[365451647,1749679832987,-5477.36557096,0.00019078,2]
[365451648,1749679833000,-6822.21898145,0.00019078,2]
[365451649,1749679833026,-13810.178637,0.00019078,2]
[365451650,1749679833058,-1085.25076,0.00019078,2]
[365451651,1749679833097,-782.18285311,0.00019078,2]
[365451652,1749679833112,-439.5,0.00019078,2]
[365451653,1749679833161,-1270.1903868,0.00019078,2]
[365451654,1749679833177,-4811.0,0.00019078,2]
[365451655,1749679833224,-268.61,0.00019078,2]
[365451656,1749679833239,-1976.70000001,0.00019078,2]
[365451657,1749679833282,-21185.2230346,0.00019078,2]
[365451659,1749679838036,-305.64,0.00018354,2]
[365451660,1749679838048,-5195.86,0.00019078,2]
[365451661,1749679838094,-1177.70377055,0.00019078,2]
[365451662,1749679838108,-979.7861744,0.00019078,2]
[365451663,1749679838265,-125240.53250208,0.00019078,2]
[365451664,1749679838276,-274.2052,0.00019078,2]
[365451665,1749679838287,-2434.74389024,0.0001908,2]
[365451666,1749679838298,-151.48627974,0.00019096,2]
[365451667,1749679838308,-561.14303538,0.00019107,2]
[365451668,1749679838319,-500.0,0.00019124,2]
[365451669,1749679838330,-500.0,0.00019124,2]
[365451670,1749679838340,-200.84703792,0.00019125,2]
[365451671,1749679838351,-2186.56505517,0.00019135,2]
[365451672,1749679838361,-250.0,0.00019137,2]
[365451673,1749679838371,-561.14303538,0.00019141,2]
[365451674,1749679838382,-5477.36557095,0.00019169,2]
[365451675,1749679838393,-500.0,0.00019173,2]
[365451676,1749679838403,-500.0,0.00019173,2]
[365451677,1749679838413,-500.0,0.00019173,2]
[365451678,1749679838424,-160.13053868,0.00019173,2]
[365451679,1749679838434,-500.0,0.00019173,2]
[365451680,1749679838445,-500.0,0.00019173,2]
[365451681,1749679838455,-500.0,0.00019173,2]
[365451682,1749679838466,-498.97809826,0.00019173,2]
[365451683,1749679838476,-500.0,0.00019173,2]
[365451684,1749679838486,-500.0,0.00019173,2]
[365451686,1749679838497,-500.0,0.00019173,2]
[365451688,1749679838507,-212.44081665,0.00019173,2]
[365451690,1749679838518,-500.0,0.00019173,2]
[365451692,1749679838529,-501.86116812,0.00019173,2]
[365451694,1749679838539,-500.0,0.00019173,2]
[365451696,1749679838550,-500.0,0.00019173,2]
[365451698,1749679838560,-561.14303538,0.00019176,2]
[365451700,1749679838571,-480.0,0.00019178,2]
[365451702,1749679838582,-490.0,0.00019178,2]
[365451704,1749679838592,-490.0,0.00019178,2]
[365451706,1749679838603,-490.0,0.00019178,2]
[365451708,1749679838613,-490.0,0.00019178,2]
[365451710,1749679838623,-490.0,0.00019178,2]
[365451712,1749679838634,-490.0,0.00019178,2]
[365451714,1749679838644,-490.0,0.00019178,2]
[365451716,1749679838656,-490.0,0.00019178,2]
[365451718,1749679838666,-480.0,0.00019178,2]
[365451720,1749679838676,-490.0,0.00019178,2]
[365451722,1749679838686,-490.0,0.00019178,2]
[365451724,1749679838697,-480.0,0.00019178,2]
[365451726,1749679838707,-480.0,0.00019178,2]
[365451728,1749679838718,-490.0,0.00019178,2]
[365451730,1749679838728,-633.04743256,0.00019178,2]
[365451731,1749679838738,-490.0,0.00019178,2]
[365451733,1749679838749,-490.0,0.00019178,2]
[365451735,1749679838759,-490.0,0.00019178,2]
[365451737,1749679838770,-490.0,0.00019178,2]
[365451739,1749679838780,-490.0,0.00019178,2]
[365451741,1749679838791,-470.0,0.00019178,2]
[365451743,1749679838802,-490.0,0.00019178,2]
[365451745,1749679838812,-490.0,0.00019178,2]
[365451747,1749679838823,-490.0,0.00019178,2]
[365451749,1749679838834,-490.0,0.00019178,2]
[365451751,1749679838844,-490.0,0.00019178,2]
[365451753,1749679838855,-490.0,0.00019178,2]
[365451755,1749679838866,-396.46553428,0.00019178,2]
[365451757,1749679838877,-490.0,0.00019178,2]
[365451759,1749679838890,-490.0,0.00019178,2]
[365451761,1749679838901,-490.0,0.00019178,2]
[365451763,1749679838913,-428.3246674,0.00019178,2]
[365451765,1749679838923,-480.0,0.00019178,2]
[365451767,1749679838934,-490.0,0.00019178,2]
[365451769,1749679838944,-548.62,0.00019178,2]
[365451771,1749679838955,-490.0,0.00019178,2]
[365451773,1749679838966,-500.0,0.00019178,2]
[365451775,1749679838977,-490.0,0.00019178,2]
[365451777,1749679838987,-411.0399414,0.00019178,2]
[365451779,1749679838999,-480.0,0.00019178,2]
[365451781,1749679839010,-490.0,0.00019178,2]
[365451784,1749679839021,-490.0,0.00019178,2]
[365451786,1749679839032,-490.0,0.00019178,2]
[365451788,1749679839042,-480.0,0.00019178,2]
[365451790,1749679839053,-480.0,0.00019178,2]
[365451792,1749679839063,-500.0,0.00019178,2]
[365451794,1749679839074,-490.0,0.00019178,2]
[365451796,1749679839085,-480.0,0.00019178,2]
[365451830,1749679839480,-490.0,0.00019178,2]
[365451831,1749679839495,-490.0,0.00019178,2]
[365451832,1749679839504,-490.0,0.00019178,2]
[365451833,1749679839513,-490.0,0.00019178,2]
[365451834,1749679839522,-459.84771952,0.00019178,2]
[365451835,1749679839531,-490.0,0.00019178,2]
[365451836,1749679839539,-490.0,0.00019178,2]
[365451837,1749679839548,-490.0,0.00019178,2]
[365451838,1749679839557,-490.0,0.00019178,2]
[365451839,1749679839567,-490.0,0.00019178,2]
[365451841,1749679839577,-490.0,0.00019178,2]
[365451843,1749679839586,-420.0,0.00019178,2]
[365451845,1749679839595,-490.0,0.00019178,2]
[365451847,1749679839604,-490.0,0.00019178,2]
[365451849,1749679839614,-490.0,0.00019178,2]
[365451851,1749679839623,-502.60924697,0.00019178,2]
[365451853,1749679839632,-490.0,0.00019178,2]
[365451855,1749679839641,-490.0,0.00019178,2]
[365451857,1749679839651,-490.0,0.00019178,2]
[365451859,1749679839662,-480.0,0.00019178,2]
[365451861,1749679839671,-490.0,0.00019178,2]
[365451864,1749679839680,-490.0,0.00019178,2]
[365451866,1749679839689,-490.0,0.00019178,2]
[365451868,1749679839698,-490.0,0.00019178,2]
[365451870,1749679839708,-490.0,0.00019178,2]
[365451872,1749679839717,-490.0,0.00019178,2]
[365451874,1749679839726,-490.0,0.00019178,2]
[365451876,1749679839736,-490.0,0.00019178,2]
[365451878,1749679839745,-490.0,0.00019178,2]
[365451880,1749679839753,-490.0,0.00019178,2]
[365451882,1749679839763,-490.0,0.00019178,2]
[365451884,1749679839771,-480.0,0.00019178,2]
[365451885,1749679839780,-300.0,0.00019178,2]
[365451887,1749679839789,-490.0,0.00019178,2]
[365451889,1749679839798,-490.0,0.00019178,2]
[365451891,1749679839807,-490.0,0.00019178,2]
[365451893,1749679839816,-490.0,0.00019178,2]
[365451895,1749679839825,-480.0,0.00019178,2]
[365451897,1749679839834,-480.0,0.00019178,2]
[365451899,1749679839844,-490.0,0.00019178,2]
[365451901,1749679839853,-490.0,0.00019178,2]
[365451903,1749679839862,-490.0,0.00019178,2]
[365451905,1749679839871,-490.0,0.00019178,2]
[365451907,1749679839885,-490.0,0.00019178,2]
[365451909,1749679839894,-490.0,0.00019178,2]
[365451911,1749679839903,-490.0,0.00019178,2]
[365451913,1749679839913,-490.7222148,0.00019178,2]
[365451915,1749679839922,-490.0,0.00019178,2]
[365451918,1749679839932,-490.0,0.00019178,2]
[365451920,1749679839941,-490.0,0.00019178,2]
[365451922,1749679839950,-490.0,0.00019178,2]
[365451924,1749679839960,-490.0,0.00019178,2]
[365451926,1749679839969,-490.0,0.00019178,2]
[365451927,1749679839979,-490.0,0.00019178,2]
[365451929,1749679839988,-480.0,0.00019178,2]
[365451931,1749679839998,-490.0,0.00019178,2]
[365451933,1749679840007,-480.0,0.00019178,2]
[365451935,1749679840017,-490.0,0.00019178,2]
[365451937,1749679840026,-490.0,0.00019178,2]
[365451940,1749679840035,-490.0,0.00019178,2]
[365451943,1749679840044,-490.0,0.00019178,2]
[365451946,1749679840054,-490.0,0.00019178,2]
[365451949,1749679840063,-490.0,0.00019178,2]
[365451951,1749679840072,-490.0,0.00019178,2]
[365451953,1749679840082,-490.0,0.00019178,2]
[365451955,1749679840090,-490.0,0.00019178,2]
[365451957,1749679840099,-490.0,0.00019178,2]
[365451959,1749679840108,-490.0,0.00019178,2]
[365451961,1749679840117,-490.0,0.00019178,2]
[365451963,1749679840126,-490.0,0.00019178,2]
[365451965,1749679840135,-397.77649511,0.00019178,2]
[365451967,1749679840144,-480.0,0.00019178,2]
[365451969,1749679840153,-490.0,0.00019178,2]
[365451971,1749679840162,-490.0,0.00019178,2]
[365451973,1749679840171,-490.0,0.00019178,2]
[365451975,1749679840181,-490.0,0.00019178,2]
[365451977,1749679840190,-480.0,0.00019178,2]
[365451979,1749679840199,-490.0,0.00019178,2]
[365451981,1749679840208,-490.0,0.00019178,2]
[365451983,1749679840217,-490.0,0.00019178,2]
[365451985,1749679840226,-480.0,0.00019178,2]
[365451987,1749679840236,-480.0,0.00019178,2]
[365451989,1749679840246,-490.0,0.00019178,2]
[365451991,1749679840255,-490.0,0.00019178,2]
[365451993,1749679840265,-490.0,0.00019178,2]
[365451995,1749679840274,-490.0,0.00019178,2]
[365451997,1749679840283,-490.0,0.00019178,2]
[365451999,1749679840292,-470.0,0.00019178,2]
[365452001,1749679840302,-480.0,0.00019178,2]
[365452003,1749679840311,-490.0,0.00019178,2]
[365452005,1749679840320,-490.0,0.00019178,2]
[365452007,1749679840329,-490.0,0.00019178,2]
[365452009,1749679840338,-490.0,0.00019178,2]
[365452011,1749679840348,-490.0,0.00019178,2]
[365452013,1749679840357,-490.0,0.00019178,2]
[365452015,1749679840367,-490.0,0.00019178,2]
[365452017,1749679840376,-420.0,0.00019178,2]
[365452019,1749679840385,-490.0,0.00019178,2]
[365452021,1749679840394,-480.0,0.00019178,2]
[365452023,1749679840404,-490.0,0.00019178,2]
[365452025,1749679840413,-490.0,0.00019178,2]
[365452027,1749679840422,-490.0,0.00019178,2]
[365452029,1749679840432,-542.88824888,0.00019178,2]
[365452031,1749679840441,-490.0,0.00019178,2]
[365452033,1749679840451,-490.0,0.00019178,2]
[365452035,1749679840460,-490.0,0.00019178,2]
[365452037,1749679840469,-490.0,0.00019178,2]
[365452039,1749679840478,-480.0,0.00019178,2]
[365452041,1749679840488,-480.0,0.00019178,2]
[365452043,1749679840497,-490.0,0.00019178,2]
[365452045,1749679840506,-490.0,0.00019178,2]
[365452047,1749679840516,-390.08231884,0.00019178,2]
[365452049,1749679840526,-470.0,0.00019178,2]
[365452051,1749679840536,-490.0,0.00019178,2]
[365452053,1749679840545,-490.0,0.00019178,2]
[365452055,1749679840557,-480.0,0.00019178,2]
[365452057,1749679840567,-258.45,0.00019178,2]
[365452059,1749679840576,-635.25,0.00019178,2]
[365452061,1749679840586,-490.0,0.00019178,2]
[365452063,1749679840595,-576.94,0.00019178,2]
[365452065,1749679840605,-250.0,0.00019178,2]
[365452067,1749679840614,-480.0,0.00019178,2]
[365452069,1749679840624,-490.0,0.00019178,2]
[365452071,1749679840633,-490.0,0.00019178,2]
[365452073,1749679840642,-519.32,0.00019178,2]
[365452075,1749679840652,-490.0,0.00019178,2]
[365452077,1749679840664,-480.0,0.00019178,2]
[365452079,1749679840674,-490.0,0.00019178,2]
[365452081,1749679840683,-490.0,0.00019178,2]
[365452083,1749679840692,-499.09,0.00019178,2]
[365452085,1749679840703,-480.0,0.00019178,2]
[365452087,1749679840712,-490.0,0.00019178,2]
[365452089,1749679840722,-490.0,0.00019178,2]
[365452091,1749679840731,-490.0,0.00019178,2]
[365452093,1749679840740,-490.0,0.00019178,2]
[365452095,1749679840750,-480.0,0.00019178,2]
[365452097,1749679840760,-490.0,0.00019178,2]
[365452099,1749679840770,-490.0,0.00019178,2]
[365452101,1749679840779,-490.0,0.00019178,2]
[365452103,1749679840791,-480.0,0.00019178,2]
[365452105,1749679840801,-485.74453431,0.00019178,2]
[365452107,1749679840810,-490.0,0.00019178,2]
[365452109,1749679840819,-490.0,0.00019178,2]
[365452111,1749679840828,-490.0,0.00019178,2]
[365452113,1749679840838,-480.0,0.00019178,2]
[365452115,1749679840847,-490.0,0.00019178,2]
[365452117,1749679840857,-490.0,0.00019178,2]
[365452119,1749679840867,-857.86,0.00019178,2]
[365452121,1749679840878,-480.0,0.00019178,2]
[365452123,1749679840890,-490.0,0.00019178,2]
[365452125,1749679840899,-1030.53,0.00019178,2]
[365452128,1749679840910,-490.0,0.00019178,2]
[365452130,1749679840920,-480.0,0.00019178,2]
[365452131,1749679840930,-490.0,0.00019178,2]
[365452133,1749679840940,-490.0,0.00019178,2]
[365452135,1749679840949,-490.0,0.00019178,2]
[365452137,1749679840961,-490.0,0.00019178,2]
[365452139,1749679840971,-226.80722037,0.00019178,2]
[365452141,1749679840980,-490.0,0.00019178,2]
[365452144,1749679840990,-490.0,0.00019178,2]
[365452145,1749679840999,-490.0,0.00019178,2]
[365452147,1749679841008,-544.79,0.00019178,2]
[365452150,1749679841018,-486.79129805,0.00019178,2]
[365452152,1749679841027,-490.0,0.00019178,2]
[365452154,1749679841037,-503.99791422,0.00019178,2]
[365452156,1749679841047,-480.0,0.00019178,2]
[365452158,1749679841057,-490.0,0.00019178,2]
[365452159,1749679841067,-490.0,0.00019178,2]
[365452161,1749679841076,-480.0,0.00019178,2]
[365452163,1749679841086,-490.0,0.00019178,2]
[365452165,1749679841095,-490.0,0.00019178,2]
[365452167,1749679841104,-796.27,0.00019178,2]
[365452170,1749679841114,-490.0,0.00019178,2]
[365452172,1749679841123,-490.0,0.00019178,2]
[365452173,1749679841132,-490.0,0.00019178,2]
[365452176,1749679841141,-490.0,0.00019178,2]
[365452178,1749679841151,-490.0,0.00019178,2]
[365452180,1749679841162,-480.0,0.00019178,2]
[365452182,1749679841172,-490.0,0.00019178,2]
[365452183,1749679841181,-490.0,0.00019178,2]
[365452186,1749679841191,-490.0,0.00019178,2]
[365452187,1749679841200,-490.0,0.00019178,2]
[365452189,1749679841210,-617.44183804,0.00019178,2]
[365452192,1749679841219,-1147.4,0.00019178,2]
[365452194,1749679841229,-480.0,0.00019178,2]
[365452196,1749679841238,-490.0,0.00019178,2]
[365452198,1749679841248,-490.0,0.00019178,2]
[365452200,1749679841258,-2000.0,0.00019178,2]
[365452202,1749679841268,-569.34,0.00019178,2]
[365452204,1749679841277,-490.0,0.00019178,2]
[365452205,1749679841286,-480.0,0.00019178,2]
[365452208,1749679841298,-490.0,0.00019178,2]
[365452210,1749679841307,-490.0,0.00019178,2]
[365452212,1749679841319,-490.0,0.00019178,2]
[365452214,1749679841329,-480.0,0.00019178,2]
[365452216,1749679841338,-460.0,0.00019178,2]
[365452218,1749679841348,-430.0,0.00019178,2]
[365452220,1749679841358,-490.0,0.00019178,2]
[365452222,1749679841367,-406.18391061,0.00019178,2]
[365452224,1749679841376,-480.0,0.00019178,2]
[365452226,1749679841386,-490.0,0.00019178,2]
[365452228,1749679841395,-490.0,0.00019178,2]
[365452230,1749679841404,-490.0,0.00019178,2]
[365452232,1749679841414,-490.0,0.00019178,2]
[365452234,1749679841423,-490.0,0.00019178,2]
[365452236,1749679841432,-490.0,0.00019178,2]
[365452238,1749679841442,-480.0,0.00019178,2]
[365452240,1749679841451,-490.0,0.00019178,2]
[365452242,1749679841460,-490.0,0.00019178,2]
[365452244,1749679841470,-490.0,0.00019178,2]
[365452245,1749679841479,-496.54,0.00019178,2]
[365452248,1749679841488,-490.0,0.00019178,2]
[365452249,1749679841498,-821.38,0.00019178,2]
[365452252,1749679841507,-490.0,0.00019178,2]
[365452254,1749679841516,-490.0,0.00019178,2]
[365452256,1749679841526,-480.0,0.00019178,2]
[365452258,1749679841535,-480.0,0.00019178,2]
[365452260,1749679841544,-490.0,0.00019178,2]
[365452262,1749679841553,-490.0,0.00019178,2]
[365452264,1749679841562,-490.0,0.00019178,2]
[365452266,1749679841571,-490.0,0.00019178,2]
[365452268,1749679841580,-480.0,0.00019178,2]
[365452270,1749679841589,-490.0,0.00019178,2]
[365452272,1749679841599,-490.0,0.00019178,2]
[365452274,1749679841608,-490.0,0.00019178,2]
[365452276,1749679841617,-480.0,0.00019178,2]